bitfinex-derivatives/quotes_BTCF0:USTF0_20230102
["timestamp","ask_amount","ask_price","bid_price","bid_amount"]
[1672617601868,0.23993999,16625.0,16624.0,0.2]
[1672617609545,0.21623843,16625.0,16624.0,0.96827976]
[1672617616267,0.21623843,16625.0,16624.0,1.08757976]
[1672617618166,0.21623843,16625.0,16624.0,1.38827976]
[1672617619009,0.21623843,16625.0,16624.0,1.08757976]
[1672617619220,0.21623843,16625.0,16624.0,1.38827976]
[1672617621630,0.01623843,16625.0,16624.0,1.38827976]
[1672617629206,0.01623843,16625.0,16624.0,1.08757976]
[1672617629520,0.01623843,16625.0,16624.0,1.38827976]
[1672617630467,0.01623843,16625.0,16624.0,1.08757976]
[1672617630673,0.01623843,16625.0,16624.0,1.38827976]
[1672617632455,0.01623843,16625.0,16624.0,1.749009]
[1672617633938,0.01623843,16625.0,16624.0,1.448309]
[1672617634455,0.01623843,16625.0,16624.0,1.749009]
[1672617634659,0.01623843,16625.0,16624.0,1.38827976]
[1672617638131,0.02550443,16626.0,16625.0,0.2]
[1672617638343,0.02550443,16626.0,16625.0,0.69773283]
[1672617639185,0.04150443,16626.0,16625.0,0.69973283]
[1672617646026,0.52161443,16627.0,16626.0,0.2]
[1672617646234,0.52161443,16627.0,16626.0,0.92340116]
[1672617647489,0.52161443,16627.0,16626.0,0.92740116]
[1672617649702,0.52161443,16627.0,16626.0,0.70173283]
[1672617651705,0.22091443,16627.0,16626.0,0.70173283]
[1672617652225,0.22091443,16627.0,16626.0,0.92738001]
[1672617654432,0.23067343,16628.0,16626.0,1.09277976]
[1672617654651,0.03067343,16628.0,16627.0,0.49773283]
[1672617654863,0.00133343,16628.0,16627.0,0.49773283]
[1672617655384,0.00133343,16628.0,16627.0,0.76827976]
[1672617655797,0.00233343,16628.0,16627.0,0.77727976]
[1672617656226,0.24,16629.0,16628.0,0.20466686]
[1672617656434,0.24,16629.0,16628.0,0.92786675]
[1672617657378,0.24,16629.0,16628.0,0.93786675]
[1672617658108,0.24,16629.0,16628.0,1.11824446]
[1672617658741,0.24,16629.0,16628.0,1.11820026]
[1672617660002,0.24,16629.0,16628.0,0.8927332]
[1672617663153,0.24,16629.0,16628.0,1.11820026]
[1672617663370,0.24,16629.0,16628.0,0.8927332]
[1672617663568,0.24,16629.0,16628.0,1.11820026]
[1672617663778,0.24,16629.0,16628.0,0.93786675]
[1672617663992,0.24,16629.0,16628.0,1.11814457]
[1672617664737,0.24,16629.0,16628.0,1.11810611]
[1672617665049,0.24,16629.0,16628.0,1.11810939]
[1672617665470,0.24,16629.0,16628.0,0.93786675]
[1672617666417,0.24,16629.0,16628.0,1.11807062]
[1672617667048,0.24,16629.0,16628.0,0.89260356]
[1672617668304,0.24,16629.0,16628.0,1.02776597]
[1672617668514,0.24,16629.0,16628.0,0.89260356]
[1672617671252,0.24,16629.0,16628.0,1.02775737]
[1672617671466,0.24,16629.0,16628.0,1.02775745]
[1672617672516,0.24,16629.0,16628.0,0.89260356]
[1672617677347,0.2,16629.0,16628.0,0.89260356]
[1672617681658,0.2,16629.0,16628.0,1.11807062]
[1672617684383,0.2,16629.0,16628.0,0.89260356]
[1672617685337,0.2,16629.0,16628.0,0.93786675]
[1672617685747,0.2,16629.0,16628.0,0.89264142]
[1672617686172,0.2,16629.0,16628.0,0.93786675]
[1672617687436,0.2,16629.0,16628.0,1.11812728]
[1672617688278,0.2,16629.0,16628.0,0.93786675]
[1672617688489,0.2,16629.0,16628.0,1.11816052]
[1672617689434,0.2,16629.0,16628.0,0.89269346]
[1672617689652,0.2,16629.0,16628.0,1.11816052]
[1672617689864,0.2,16629.0,16628.0,0.93786675]
[1672617690387,0.2,16629.0,16628.0,1.11819349]
[1672617690598,0.2,16629.0,16628.0,0.93786675]
[1672617694375,0.2,16629.0,16628.0,0.71239969]
[1672617698063,0.2,16629.0,16628.0,0.93794278]
[1672617698584,0.2,16629.0,16628.0,0.71239969]
[1672617700055,0.103,16631.0,16629.0,0.02369629]
[1672617700270,0.103,16631.0,16630.0,0.18036085]
[1672617700467,0.303,16631.0,16630.0,0.67809368]
[1672617701307,0.303,16631.0,16630.0,0.90358858]
[1672617702050,0.303,16631.0,16630.0,0.73422773]
[1672617702258,0.103,16631.0,16630.0,0.91453692]
[1672617702575,0.303,16631.0,16630.0,0.80953717]
[1672617703415,0.303,16631.0,16630.0,1.03503207]
[1672617704243,0.303,16631.0,16630.0,0.85472773]
[1672617704455,0.303,16631.0,16630.0,1.03496741]
[1672617705938,0.303,16631.0,16630.0,0.80948444]
[1672617706463,0.303,16631.0,16630.0,1.03497934]
[1672617707197,0.272172,16631.0,16630.0,1.03497934]
[1672617708135,0.272172,16631.0,16630.0,1.03491093]
[1672617708558,0.272172,16631.0,16630.0,0.85472773]
[1672617708761,0.272172,16631.0,16630.0,0.80941459]
[1672617709507,0.272172,16631.0,16630.0,1.03490949]
[1672617711188,0.272172,16631.0,16630.0,1.03488898]
[1672617711500,0.272172,16631.0,16630.0,0.85472773]
[1672617711711,0.072172,16631.0,16630.0,0.80939167]
[1672617712130,0.072172,16631.0,16630.0,1.03488657]
[1672617712343,0.072172,16631.0,16630.0,0.85472773]
[1672617714335,0.072172,16631.0,16630.0,0.85402773]
[1672617714555,0.072172,16631.0,16630.0,0.85364003]
[1672617716544,0.072172,16631.0,16630.0,0.85359274]
[1672617719385,0.041882,16631.0,16630.0,0.85359274]
[1672617719595,0.041882,16631.0,16630.0,0.62853283]
[1672617720326,0.041882,16631.0,16630.0,0.8535298]
[1672617721067,0.041882,16631.0,16630.0,1.03355701]
[1672617721592,0.041882,16631.0,16630.0,0.80856004]
[1672617721801,0.041882,16631.0,16630.0,1.03355701]
[1672617722011,0.041882,16631.0,16630.0,0.80856004]
[1672617722222,0.041882,16631.0,16630.0,1.03355701]
[1672617722436,0.041882,16631.0,16630.0,0.80856004]
[1672617722643,0.041882,16631.0,16630.0,0.8535298]
[1672617729786,0.041882,16631.0,16630.0,0.80928732]
[1672617729996,0.342582,16631.0,16630.0,0.73384295]
[1672617730207,0.463082,16631.0,16630.0,0.10104405]
[1672617732731,0.463082,16631.0,16630.0,0.23611012]
[1672617733569,0.463082,16631.0,16630.0,0.10104405]
[1672617733784,0.661882,16631.0,16630.0,0.10104405]
[1672617734415,0.661882,16631.0,16630.0,0.23611012]
[1672617734943,0.661882,16631.0,16630.0,0.10104405]
[1672617735885,0.361182,16631.0,16630.0,0.10104405]
[1672617736094,0.661882,16631.0,16630.0,0.10104405]
[1672617736309,0.661882,16631.0,16630.0,0.011]
[1672617739675,0.661882,16631.0,16630.0,0.10104405]
[1672617739985,0.661882,16631.0,16630.0,0.011]
[1672617740400,0.661882,16631.0,16630.0,0.10104405]
[1672617741881,0.661882,16631.0,16630.0,0.011]
[1672617742606,0.661882,16631.0,16630.0,0.10104405]
[1672617742817,0.361182,16631.0,16630.0,0.10104405]
[1672617743028,0.661882,16631.0,16630.0,0.10104405]
[1672617743981,0.662182,16631.0,16630.0,0.10104405]
[1672617744612,0.662182,16631.0,16630.0,0.011]
[1672617749977,0.361482,16631.0,16630.0,0.011]
[1672617750187,0.662182,16631.0,16630.0,0.011]
[1672617751134,0.361482,16631.0,16630.0,0.011]
[1672617751346,0.662182,16631.0,16630.0,0.011]
[1672617756697,0.361482,16631.0,16630.0,0.011]
[1672617757017,0.662182,16631.0,16630.0,0.011]
[1672617759012,0.662182,16631.0,16630.0,0.10104405]
[1672617761541,0.662182,16631.0,16630.0,0.011]
[1672617763740,0.361482,16631.0,16630.0,0.10104405]
[1672617764164,0.662182,16631.0,16630.0,0.10104405]
[1672617764798,0.662182,16631.0,16630.0,0.011]
[1672617765005,0.662182,16631.0,16630.0,0.10104405]
[1672617765437,0.361482,16631.0,16630.0,0.10104405]
[1672617765752,0.662182,16631.0,16630.0,0.10104405]
[1672617765963,0.361482,16631.0,16630.0,0.10104405]
[1672617766176,0.662182,16631.0,16630.0,0.10104405]
[1672617767119,0.662182,16631.0,16630.0,0.23611012]
[1672617768901,0.662182,16631.0,16630.0,0.14606607]
[1672617769111,0.662182,16631.0,16630.0,0.23628352]
[1672617771225,0.662182,16631.0,16630.0,0.10101782]
[1672617772383,0.662182,16631.0,16630.0,0.23608389]
[1672617777957,0.662182,16631.0,16630.0,0.10101782]
[1672617778364,0.662182,16631.0,16630.0,0.23608389]
[1672617780577,0.662182,16631.0,16630.0,0.10101782]
[1672617782681,0.662182,16631.0,16630.0,0.23608389]
[1672617785094,0.662182,16631.0,16630.0,0.10101782]
[1672617787631,0.361482,16631.0,16630.0,0.10101782]
[1672617787835,0.662182,16631.0,16630.0,0.10101782]
[1672617788465,0.662182,16631.0,16630.0,0.23608389]
[1672617788676,0.662182,16631.0,16630.0,0.10101782]
[1672617790777,0.662182,16631.0,16630.0,0.23608389]
[1672617792148,0.662182,16631.0,16630.0,0.01080037]
[1672617794563,0.662182,16631.0,16630.0,0.10101782]
[1672617796249,0.662182,16631.0,16630.0,0.01080037]
[1672617796655,0.662182,16631.0,16630.0,0.10101782]
[1672617796869,0.361482,16631.0,16630.0,0.10101782]
[1672617797081,0.662182,16631.0,16630.0,0.10101782]
[1672617798136,0.662182,16631.0,16630.0,0.01080037]
[1672617799082,0.662182,16631.0,16630.0,0.10101782]
[1672617799292,0.662182,16631.0,16630.0,0.01080037]
[1672617800770,0.361482,16631.0,16630.0,0.01080037]
[1672617801081,0.662182,16631.0,16630.0,0.01080037]
[1672617803072,0.662182,16631.0,16630.0,0.10101782]
[1672617804121,0.662182,16631.0,16630.0,0.01080037]
[1672617804866,0.662182,16631.0,16630.0,0.10101782]
[1672617806345,0.662182,16631.0,16630.0,0.23608389]
[1672617806557,0.633792,16631.0,16630.0,0.14586644]
[1672617806868,0.514192,16631.0,16630.0,0.23604455]
[1672617807077,0.514192,16631.0,16630.0,0.33604455]
[1672617807286,0.514192,16631.0,16630.0,0.42592093]
[1672617807502,0.514192,16631.0,16630.0,0.92353898]
[1672617807702,0.514192,16631.0,16630.0,0.92372744]
[1672617807918,0.514192,16631.0,16630.0,0.78847291]
[1672617808127,0.514192,16631.0,16630.0,0.92369162]
[1672617808751,0.514192,16631.0,16630.0,0.33617419]
[1672617808964,0.213492,16631.0,16630.0,0.33617419]
[1672617809408,0.213492,16631.0,16630.0,0.42607357]
[1672617809710,0.213492,16631.0,16630.0,0.9236944]
[1672617809921,0.213492,16631.0,16630.0,0.24601908]
[1672617810544,0.213492,16631.0,16630.0,0.33615997]
[1672617811180,0.213492,16631.0,16630.0,0.20094126]
[1672617812127,0.213492,16631.0,16630.0,0.24601908]
[1672617814227,0.333992,16631.0,16630.0,0.23615075]
[1672617814446,0.333992,16631.0,16630.0,0.01080037]
[1672617814637,0.333992,16631.0,16630.0,0.10093204]
[1672617815280,0.333992,16631.0,16630.0,0.01080037]
[1672617815798,0.333992,16631.0,16630.0,0.10093204]
[1672617816429,0.213492,16631.0,16630.0,0.01080037]
[1672617816752,0.213492,16631.0,16630.0,0.24601908]
[1672617816951,0.213492,16631.0,16630.0,0.33615795]
[1672617817797,0.213492,16631.0,16630.0,0.7884778]
[1672617818745,0.213492,16631.0,16630.0,0.24599364]
[1672617818957,0.213492,16631.0,16630.0,0.33612248]
[1672617819167,0.21332407,16631.0,16630.0,0.33612248]
[1672617819903,0.21332407,16631.0,16630.0,0.11080037]
[1672617820313,0.21332407,16631.0,16630.0,0.20092921]
[1672617821367,0.21332407,16631.0,16630.0,0.33612248]
[1672617822324,0.51402407,16631.0,16630.0,0.33612248]
[1672617822844,0.51402407,16631.0,16630.0,0.20092921]
[1672617825051,0.51402407,16631.0,16630.0,0.24599364]
[1672617825262,0.51402407,16631.0,16630.0,0.20092911]
[1672617825687,0.51402407,16631.0,16630.0,0.42604813]
[1672617825885,0.51402407,16631.0,16630.0,0.24599364]
[1672617826527,0.51402407,16631.0,16630.0,0.42604813]
[1672617826735,0.51402407,16631.0,16630.0,0.24599364]
[1672617827052,0.51402407,16631.0,16630.0,0.42604813]
[1672617827461,0.51402407,16631.0,16630.0,0.92366059]
[1672617827894,0.51402407,16631.0,16630.0,0.33610722]
[1672617828311,0.51402407,16631.0,16630.0,0.29085486]
[1672617828843,0.51402407,16631.0,16630.0,0.33608037]
[1672617829054,0.51402407,16631.0,16630.0,0.92363316]
[1672617829999,0.51402407,16631.0,16630.0,0.33607062]
[1672617830731,0.51402407,16631.0,16630.0,0.92363245]
[1672617831677,0.51402407,16631.0,16630.0,0.42602286]
[1672617831892,0.51402407,16631.0,16630.0,0.24596837]
[1672617832304,0.51402407,16631.0,16630.0,0.20089617]
[1672617832723,0.51402407,16631.0,16630.0,0.24596837]
[1672617838719,0.51402407,16631.0,16630.0,0.24593842]
[1672617838930,0.51402407,16631.0,16630.0,0.33603428]
[1672617839770,0.51402407,16631.0,16630.0,0.24593842]
[1672617840918,0.31402407,16631.0,16630.0,0.24593842]
[1672617841134,0.01332407,16631.0,16630.0,0.90895525]
[1672617842708,0.01332407,16631.0,16630.0,0.95389773]
[1672617842915,0.48183021,16633.0,16631.0,0.2]
[1672617843246,0.48183021,16633.0,16632.0,0.09008037]
[1672617843448,0.48183021,16633.0,16631.0,0.42520093]
[1672617843867,0.18113021,16633.0,16631.0,0.42520093]
[1672617844076,0.48183021,16633.0,16632.0,0.011]
[1672617844608,0.48183021,16633.0,16631.0,0.43620093]
[1672617845749,0.48183021,16633.0,16632.0,0.011]
[1672617846290,0.48183021,16633.0,16632.0,0.09008037]
[1672617846812,0.48183021,16633.0,16632.0,0.22520093]
[1672617847023,0.48183021,16633.0,16632.0,0.23620093]
[1672617847440,0.48183021,16633.0,16632.0,0.2361987]
[1672617848391,0.48183021,16633.0,16632.0,0.10107814]
[1672617848599,0.48183021,16633.0,16632.0,0.2361987]
[1672617849436,0.48183021,16633.0,16632.0,0.011]
[1672617849643,0.48183021,16633.0,16632.0,0.2361987]
[1672617850915,0.48183021,16633.0,16632.0,0.011]
[1672617853752,0.18113021,16633.0,16632.0,0.011]
[1672617854070,0.48183021,16633.0,16632.0,0.2361987]
[1672617854803,0.48183021,16633.0,16632.0,0.10107814]
[1672617855013,0.48183021,16633.0,16632.0,0.2361987]
[1672617856176,0.48183021,16633.0,16632.0,0.011]
[1672617860162,0.48183021,16633.0,16632.0,0.10107814]
[1672617860472,0.48183021,16633.0,16632.0,0.011]
[1672617861527,0.48183021,16633.0,16632.0,0.2361987]
[1672617865412,0.47036021,16633.0,16632.0,0.2361987]
[1672617867517,0.47036021,16633.0,16632.0,0.14612056]
[1672617867939,0.47036021,16633.0,16632.0,0.10105142]
[1672617870875,0.16966021,16633.0,16632.0,0.10105142]
[1672617871081,0.47036021,16633.0,16632.0,0.10105142]
[1672617872663,0.47036021,16633.0,16632.0,0.14612056]
[1672617873500,0.47036021,16633.0,16632.0,0.32628131]
[1672617873926,0.47036021,16633.0,16632.0,0.82382065]
[1672617874336,0.47036021,16633.0,16632.0,0.32628131]
[1672617874556,0.47036021,16633.0,16632.0,0.14612056]
[1672617875503,0.3007,16635.0,16633.0,0.1]
[1672617875821,0.1,16634.0,16633.0,0.1900307]
[1672617876132,0.1,16634.0,16633.0,0.0900307]
[1672617876335,0.1,16634.0,16632.0,0.35545126]
[1672617876752,0.1,16634.0,16632.0,0.1303]
[1672617876969,0.1,16634.0,16632.0,0.1193]
[1672617877181,0.1,16634.0,16633.0,0.011]
[1672617877387,0.1,16634.0,16632.0,0.34445126]
[1672617877607,0.1,16634.0,16632.0,0.35545126]
[1672617877917,0.1,16634.0,16632.0,0.34445126]
[1672617878126,0.1,16634.0,16633.0,0.011]
[1672617878538,0.1,16634.0,16632.0,0.1303]
[1672617878964,0.1,16634.0,16632.0,0.1193]
[1672617879178,0.1,16634.0,16633.0,0.011]
[1672617880227,0.1,16634.0,16632.0,0.1193]
[1672617880437,0.1,16634.0,16632.0,0.35545126]
[1672617880753,0.1,16634.0,16632.0,0.34445126]
[1672617880969,0.1,16634.0,16633.0,0.011]
[1672617881282,0.1,16634.0,16632.0,0.35545126]
[1672617881697,0.1,16634.0,16632.0,0.34445126]
[1672617881914,0.5212,16634.0,16633.0,0.011]
[1672617882124,0.6407,16634.0,16633.0,0.011]
[1672617882443,0.6407,16634.0,16632.0,0.011]
[1672617882650,0.1205,16633.0,16632.0,0.011]
[1672617883488,0.1205,16633.0,16631.0,0.0900307]
[1672617883806,0.1,16632.0,16630.0,0.22515126]
[1672617884012,0.1,16632.0,16629.0,0.44565126]
[1672617884220,0.4007,16632.0,16631.0,0.0900307]
[1672617884641,0.4007,16632.0,16631.0,0.1010307]
[1672617885269,0.4007,16632.0,16631.0,0.0900307]
[1672617886745,0.4007,16632.0,16630.0,0.32515126]
[1672617887171,0.4007,16632.0,16631.0,0.011]
[1672617887478,0.4007,16632.0,16631.0,0.1010307]
[1672617887693,0.4007,16632.0,16631.0,0.0900307]
[1672617887899,0.4007,16632.0,16630.0,0.33615126]
[1672617888108,0.4007,16632.0,16630.0,0.32515126]
[1672617888319,0.4007,16632.0,16631.0,0.011]
[1672617889059,0.4007,16632.0,16631.0,0.111]
[1672617890326,0.4007,16632.0,16631.0,0.2010307]
[1672617891157,0.4007,16632.0,16631.0,0.111]
[1672617891890,0.1,16632.0,16631.0,0.011]
[1672617892100,0.4007,16632.0,16631.0,0.011]
[1672617894421,0.4007,16632.0,16631.0,0.1010307]
[1672617894626,0.4007,16632.0,16631.0,0.011]
[1672617894837,0.4007,16632.0,16631.0,0.1010307]
[1672617895151,0.4007,16632.0,16631.0,0.011]
[1672617895999,0.1,16632.0,16631.0,0.011]
[1672617896312,0.4007,16632.0,16631.0,0.011]
[1672617898620,0.39585,16632.0,16631.0,0.011]
[1672617903984,0.51635,16632.0,16631.0,0.011]
[1672617905972,0.21565,16632.0,16631.0,0.011]
[1672617906293,0.51635,16632.0,16631.0,0.011]
[1672617916804,0.39585,16632.0,16631.0,0.1010307]
[1672617917117,0.39585,16632.0,16631.0,0.011]
[1672617917746,0.38595,16632.0,16631.0,0.011]
[1672617917951,0.38595,16632.0,16631.0,0.1010307]
[1672617918161,0.38595,16632.0,16631.0,0.011]
[1672617919215,0.38595,16632.0,16631.0,0.23615126]
[1672617921417,0.08525,16632.0,16631.0,0.23615126]
[1672617921628,0.1,16633.0,16631.0,0.14612056]
[1672617921840,0.36956523,16634.0,16632.0,0.4212]
[1672617922049,0.36956523,16634.0,16632.0,0.51128972]
[1672617922369,0.36956523,16634.0,16633.0,0.1]
[1672617924472,0.36956523,16634.0,16633.0,0.111]
[1672617932463,0.36956523,16634.0,16633.0,0.011]
[1672617933824,0.06886523,16634.0,16633.0,0.111]
[1672617934038,0.36956523,16634.0,16633.0,0.111]
[1672617934250,0.36956523,16634.0,16633.0,0.011]
[1672617935088,0.36956523,16634.0,16633.0,0.111]
[1672617938871,0.06886523,16634.0,16633.0,0.111]
[1672617940033,0.36956523,16634.0,16633.0,0.111]
[1672617940669,0.36956523,16634.0,16633.0,0.011]
[1672617942438,0.06886523,16634.0,16633.0,0.011]
[1672617942649,0.36956523,16634.0,16633.0,0.111]
[1672617942866,0.06886523,16634.0,16633.0,0.111]
[1672617943077,0.36956523,16634.0,16633.0,0.011]
[1672617943702,0.36956523,16634.0,16633.0,0.111]
[1672617944765,0.06886523,16634.0,16633.0,0.111]
[1672617954324,0.36956523,16634.0,16633.0,0.111]
[1672617958102,0.36956523,16634.0,16633.0,0.20108972]
[1672617959148,0.06886523,16634.0,16633.0,0.20108972]
[1672617961250,0.06886523,16634.0,16633.0,0.111]
[1672617962089,0.0897,16635.0,16633.0,0.111]
[1672617962306,0.4007,16637.0,16634.0,0.51128972]
[1672617962516,0.4007,16637.0,16635.0,0.1]
[1672617962833,0.1199,16636.0,16635.0,0.1]
[1672617963886,0.1199,16636.0,16635.0,0.112]
[1672617973758,0.1199,16636.0,16635.0,0.012]
[1672617973969,0.1195,16636.0,16635.0,0.012]
[1672617975120,0.5212,16637.0,16635.0,0.10208972]
[1672617975339,0.49178,16637.0,16636.0,0.1]
[1672617977644,0.49178,16637.0,16636.0,0.112]
[1672617977645,0.19108,16637.0,16636.0,0.112]
[1672617978809,0.49178,16637.0,16636.0,0.112]
[1672617980586,0.49178,16637.0,16636.0,0.012]
[1672617983742,0.19108,16637.0,16636.0,0.012]
[1672617983947,0.49178,16637.0,16636.0,0.012]
[1672617996571,0.49178,16637.0,16635.0,0.19008972]
[1672617996893,0.49178,16637.0,16636.0,0.012]
[1672617997621,0.49178,16637.0,16635.0,0.20108972]
[1672617997838,0.49178,16637.0,16635.0,0.111]
[1672617998049,0.49178,16637.0,16635.0,0.19008972]
[1672617998250,0.49178,16637.0,16636.0,0.012]
[1672617998777,0.49178,16637.0,16635.0,0.20108972]
[1672617998984,0.49178,16637.0,16635.0,0.111]
[1672617999829,0.49178,16637.0,16636.0,0.012]
[1672618000250,0.49178,16637.0,16635.0,0.111]
[1672618000982,0.49178,16637.0,16636.0,0.012]
[1672618001522,0.49178,16637.0,16635.0,0.111]
[1672618002040,0.49178,16637.0,16636.0,0.012]
[1672618003297,0.49178,16637.0,16635.0,0.50178972]
[1672618003504,0.49178,16637.0,16635.0,0.4117]
[1672618003715,0.49178,16637.0,16636.0,0.012]
[1672618004132,0.49178,16637.0,16635.0,0.4007]
[1672618004345,0.49178,16637.0,16635.0,0.4117]
[1672618004554,0.49178,16637.0,16635.0,0.4007]
[1672618004775,0.49178,16637.0,16636.0,0.012]
[1672618006556,0.49178,16637.0,16635.0,0.4117]
[1672618006984,0.49178,16637.0,16636.0,0.012]
[1672618007398,0.49178,16637.0,16635.0,0.4007]
[1672618007612,0.49178,16637.0,16635.0,0.4117]
[1672618007932,0.49178,16637.0,16635.0,0.4007]
[1672618008144,0.49178,16637.0,16636.0,0.012]
[1672618008145,0.19108,16637.0,16636.0,0.012]
[1672618009198,0.19108,16637.0,16635.0,0.63691028]
[1672618009621,0.19108,16637.0,16635.0,0.50178972]
[1672618010037,0.19108,16637.0,16636.0,0.012]
[1672618010352,0.19108,16637.0,16635.0,0.49078972]
[1672618010564,0.19108,16637.0,16635.0,0.50178972]
[1672618010974,0.19108,16637.0,16636.0,0.012]
[1672618011402,0.19108,16637.0,16635.0,0.49078972]
[1672618011615,0.19108,16637.0,16635.0,0.50178972]
[1672618012450,0.19108,16637.0,16635.0,0.49078972]
[1672618012660,0.19108,16637.0,16636.0,0.012]
[1672618012874,0.19108,16637.0,16635.0,0.4007]
[1672618013082,0.19108,16637.0,16635.0,0.4117]
[1672618013402,0.19108,16637.0,16635.0,0.4007]
[1672618013612,0.19108,16637.0,16636.0,0.012]
[1672618014135,0.19108,16637.0,16635.0,0.50178972]
[1672618014558,0.19108,16637.0,16635.0,0.4117]
[1672618015181,0.19108,16637.0,16635.0,0.4007]
[1672618015389,0.19108,16637.0,16636.0,0.012]
[1672618015607,0.19108,16637.0,16635.0,0.4007]
[1672618015816,0.19108,16637.0,16635.0,0.4117]
[1672618016239,0.19108,16637.0,16636.0,0.012]
[1672618016768,0.19108,16637.0,16635.0,0.63691028]
[1672618016973,0.19108,16637.0,16635.0,0.33621028]
[1672618017291,0.19108,16637.0,16636.0,0.01]
[1672618017814,0.49178,16637.0,16636.0,0.01]
[1672618018773,0.49178,16637.0,16635.0,0.33421028]
[1672618019085,0.49178,16637.0,16636.0,0.01]
[1672618019614,0.49178,16637.0,16635.0,0.11]
[1672618020018,0.49178,16637.0,16635.0,0.19008972]
[1672618020239,0.49178,16637.0,16636.0,0.011]
[1672618021390,0.49178,16637.0,16635.0,0.01]
[1672618021604,0.241,16636.0,16635.0,0.01]
[1672618021813,0.241,16636.0,16633.0,0.19008972]
[1672618022023,0.5212,16635.0,16633.0,0.1]
[1672618022233,0.5212,16635.0,16632.0,0.09008972]
[1672618022545,0.1205,16633.0,16632.0,0.19008972]
[1672618023600,0.1205,16633.0,16632.0,0.1]
[1672618024235,0.1205,16633.0,16632.0,0.106]
[1672618028642,0.1205,16633.0,16632.0,0.10583682]
[1672618029496,0.1205,16633.0,16632.0,0.19592654]
[1672618030331,0.1205,16633.0,16632.0,0.10583682]
[1672618031277,0.1205,16633.0,16632.0,0.19592654]
[1672618031491,0.1,16634.0,16632.0,0.31642654]
[1672618032018,0.1,16634.0,16632.0,0.22633682]
[1672618032434,0.1,16634.0,16632.0,0.31642654]
[1672618032752,0.1,16634.0,16632.0,0.4515471]
[1672618033698,0.1,16634.0,16632.0,0.31642654]
[1672618034117,0.1,16634.0,16632.0,0.4515471]
[1672618034322,0.1,16634.0,16632.0,0.31642654]
[1672618034532,0.1,16634.0,16632.0,0.4515471]
[1672618035065,0.1,16634.0,16632.0,0.22633682]
[1672618035378,0.2205,16635.0,16632.0,0.22633682]
[1672618035593,0.2205,16635.0,16633.0,0.3007]
[1672618035905,0.2205,16635.0,16634.0,0.1]
[1672618036756,0.1,16635.0,16634.0,0.1]
[1672618037158,0.1,16635.0,16634.0,0.11]
[1672618044206,0.1,16635.0,16634.0,0.109]
[1672618045872,0.1,16635.0,16634.0,0.1]
[1672618046087,0.1,16635.0,16634.0,0.11]
[1672618046932,0.1,16635.0,16634.0,0.4107]
[1672618048400,0.1,16635.0,16634.0,0.11]
[1672618048723,0.1,16635.0,16634.0,0.4107]
[1672618048935,0.1,16635.0,16634.0,0.11]
[1672618049142,0.1,16635.0,16634.0,0.4107]
[1672618051349,0.1,16635.0,16634.0,0.11]
[1672618052084,0.4007,16635.0,16634.0,0.11]
[1672618052294,0.5212,16635.0,16634.0,0.01]
[1672618052926,0.5202,16635.0,16634.0,0.01]
[1672618055658,0.2193,16634.0,16631.0,0.1]
[1672618055866,0.241,16632.0,16631.0,0.1]
[1672618056076,0.341,16632.0,16631.0,0.1]
[1672618056282,0.341,16632.0,16630.0,0.1]
[1672618056603,0.5212,16631.0,16629.0,0.1]
[1672618056814,0.5212,16631.0,16630.0,0.1]
[1672618058702,0.5212,16631.0,16630.0,0.107]
[1672618059123,0.5212,16631.0,16630.0,0.1]
[1672618059340,0.5212,16631.0,16630.0,0.107]
[1672618059341,0.5302,16631.0,16630.0,0.107]
[1672618062699,0.2295,16631.0,16630.0,0.107]
[1672618066480,0.2295,16631.0,16630.0,0.007]
[1672618066794,0.3494,16631.0,16630.0,0.007]
[1672618083716,0.6501,16631.0,16630.0,0.007]
[1672618089609,0.009,16631.0,16630.0,0.007]
[1672618101263,0.009,16631.0,16630.0,0.09708972]
[1672618101475,0.009,16631.0,16630.0,0.09701236]
[1672618102002,0.009,16631.0,16630.0,0.00692264]
[1672618102215,0.009,16631.0,16630.0,0.09701236]
[1672618104206,0.009,16631.0,16630.0,0.00692264]
[1672618107681,0.009,16631.0,16630.0,0.09701236]
[1672618116612,0.009,16631.0,16630.0,0.00692264]
[1672618118714,0.009,16631.0,16630.0,0.09701236]
[1672618120294,0.009,16631.0,16630.0,0.00692264]
[1672618120500,0.1295,16631.0,16630.0,0.00692264]
[1672618127953,0.1295,16631.0,16630.0,0.09701236]
[1672618128164,0.1295,16631.0,16630.0,0.00692264]
[1672618128375,0.4302,16631.0,16630.0,0.00692264]
[1672618128688,0.4296,16631.0,16630.0,0.00692264]
[1672618148061,0.4097,16631.0,16630.0,0.00692264]
[1672618151417,0.109,16631.0,16630.0,0.00692264]
[1672618151621,0.4097,16631.0,16630.0,0.00692264]
[1672618153942,0.4208,16631.0,16630.0,0.00692264]
[1672618159184,0.1201,16631.0,16630.0,0.00692264]
[1672618159384,0.4208,16631.0,16630.0,0.00692264]
[1672618163069,0.1201,16631.0,16630.0,0.00692264]
[1672618163284,0.4208,16631.0,16630.0,0.00692264]
[1672618176749,0.5413,16631.0,16630.0,0.00692264]
[1672618181156,0.4212,16631.0,16630.0,0.00692264]
[1672618181366,0.5408,16631.0,16630.0,0.00692264]
[1672618184306,0.2401,16631.0,16630.0,0.00692264]
[1672618197964,0.2401,16631.0,16630.0,0.00681873]
[1672618204584,0.5408,16631.0,16630.0,0.00681873]
[1672618205954,0.2401,16631.0,16630.0,0.00681873]
[1672618206275,0.5408,16631.0,16630.0,0.00681873]
[1672618208696,0.2401,16631.0,16630.0,0.00681873]
[1672618208895,0.5408,16631.0,16630.0,0.00681873]
[1672618209950,0.2401,16631.0,16630.0,0.00681873]
[1672618210161,0.5408,16631.0,16630.0,0.00681873]